fUST/lending_fUST_20251220
["ID","MTS","AMOUNT","RATE_DAILY","PERIOD"]
[399242128,1766199515624,515.43,0.00011219,2]
[399242129,1766199516018,572.7,0.00011606,2]
[399242130,1766199521036,246.57302038,0.00013698,2]
[399242131,1766199522402,680.37455367,0.00013698,2]
[399242133,1766199533214,1501.26750588,0.00013599,2]
[399242134,1766199543959,500.0,0.00013273,2]
[399242135,1766199544048,501.25030773,0.00013273,2]
[399242136,1766199544161,500.49201302,0.00013273,2]
[399242137,1766199548142,518.4802276,0.00013273,2]
[399242138,1766199548180,166.11802215,0.00013273,2]
[399242140,1766199558659,999.0,0.00013213,2]
[399242141,1766199559180,-300.0,0.00013698,2]
[399242142,1766199586026,150.0,0.0001012,2]
[399242143,1766199586442,150.0,0.00010602,2]
[399242144,1766199586950,150.0,0.00011084,2]
[399242145,1766199587362,150.0,0.00011566,2]
[399242146,1766199587798,150.0,0.00012048,2]
[399242147,1766199588218,150.0,0.0001253,2]
[399242148,1766199588645,150.0,0.00013012,2]
[399242149,1766199589037,150.0,0.00013494,2]
[399242150,1766199604609,282.86544268,0.00013273,2]
[399242151,1766199604768,500.46781681,0.00013273,2]
[399242152,1766199608011,500.0,0.00013273,2]
[399242153,1766199608513,500.0,0.00013273,2]
[399242154,1766199611202,500.0,0.00013273,2]
[399242155,1766199611992,-300.0,0.00013698,2]
[399242156,1766199612021,-300.0,0.00013698,2]
[399242157,1766199612048,-300.0,0.00013698,2]
[399242158,1766199612076,-1200.0,0.00013698,2]
[399242159,1766199612105,-300.0,0.00013698,2]
[399242160,1766199612447,351.8658195,0.00013273,2]
[399242161,1766199615345,500.0,0.00013273,2]
[399242162,1766199616170,500.0,0.00013273,2]
[399242163,1766199616719,500.0,0.00013273,2]
[399242164,1766199616764,500.0,0.00013273,2]
[399242165,1766199618710,300.0,0.00013673,2]
[399242166,1766199619045,500.0,0.00013273,2]
[399242167,1766199619942,500.51013167,0.00013273,2]
[399242168,1766199623161,500.42564553,0.00013273,2]
[399242169,1766199623320,500.0,0.00013273,2]
[399242170,1766199624360,500.0,0.00013273,2]
[399242171,1766199625134,47.2084033,0.00013273,2]
[399242172,1766199625156,452.7915967,0.00013273,2]
[399242173,1766199625608,502.12038227,0.00013273,2]
[399242174,1766199629664,492.27346408,0.00013273,2]
[399242175,1766199630640,500.0,0.00013273,2]
[399242176,1766199633928,500.0,0.00013273,2]
[399242177,1766199634891,500.0,0.00013273,2]
[399242178,1766199635166,500.0,0.00013273,2]
[399242179,1766199637964,970.6260577,0.00013519,2]
[399242180,1766199653509,150.0,8.602e-05,2]
[399242181,1766199653871,150.0,9.012e-05,2]
[399242182,1766199654264,150.0,9.421e-05,2]
[399242183,1766199654648,150.0,9.831e-05,2]
[399242184,1766199655054,165.71,0.0001024,2]
[399242185,1766199655554,198.86,0.0001065,2]
[399242186,1766199655891,232.0,0.0001106,2]
[399242187,1766199656310,265.14,0.00011469,2]
[399242188,1766199656725,298.29,0.00011879,2]
[399242189,1766199657615,331.43,0.00012288,2]
[399242190,1766199665462,666.1058732,0.00013229,2]
[399242192,1766199667475,502.45029956,0.00013273,2]
[399242193,1766199691404,500.55205509,0.00013273,2]
[399242194,1766199698417,500.0,0.00013273,2]
[399242196,1766199698951,165.24059546,0.00013273,2]
[399242197,1766199703390,500.0,0.00013273,2]
[399242198,1766199712087,-237.35236697,0.00013698,2]
[399242199,1766199712121,-300.0,0.00013698,2]
[399242200,1766199712146,-62.98881823,0.00013698,2]
[399242201,1766199723612,500.0,0.00013273,2]
[399242202,1766199723764,500.0,0.00013273,2]
[399242203,1766199724642,150.0,0.00011658,2]
[399242204,1766199724690,-467.0843512,0.00013698,2]
[399242205,1766199724713,-32.9156488,0.00013698,2]
[399242206,1766199725066,150.0,0.00012214,2]
[399242207,1766199725479,150.0,0.00012769,2]
[399242208,1766199725871,150.0,0.00013324,2]
[399242209,1766199726754,-259.58758956,0.00013698,2]
[399242210,1766199726941,500.0,0.00013273,2]
[399242211,1766199731115,500.0,0.00013273,2]
[399242212,1766199731142,500.0,0.00013273,2]
[399242213,1766199731721,500.0,0.00013273,2]
[399242214,1766199731981,500.0,0.00013273,2]
[399242215,1766199734836,500.0,0.00013273,2]
[399242216,1766199739091,500.0,0.00013273,2]
[399242217,1766199740840,500.0,0.00013273,2]
[399242218,1766199745596,500.0,0.00013273,2]
[399242219,1766199748992,500.0,0.00013273,2]
[399242220,1766199783631,500.46508381,0.00013273,2]
[399242221,1766199795602,150.0,0.00011674,2]
[399242222,1766199796140,150.0,0.0001223,2]
[399242223,1766199796557,150.0,0.00012786,2]
[399242224,1766199796949,150.0,0.00013342,2]
[399242225,1766199813711,1915.99107322,0.00013599,2]
[399242226,1766199823581,881.8047903,0.000152,120]
[399242227,1766199825558,2475.28583286,0.00013671,2]
[399242228,1766199843915,167.16910234,0.00013273,2]
[399242229,1766199848312,500.71591428,0.00013273,2]
[399242230,1766199853877,172.20068467,0.00013273,2]
[399242231,1766199853911,500.0,0.00013273,2]
[399242232,1766199854053,500.0,0.00013273,2]
[399242233,1766199855775,500.0,0.00013273,2]
[399242234,1766199859262,500.0,0.00013273,2]
[399242235,1766199861520,500.0,0.00013273,2]
[399242236,1766199861913,500.96042768,0.00013273,2]
[399242237,1766199864911,150.0,0.00011659,2]
[399242238,1766199865256,150.0,0.00012215,2]
[399242239,1766199865677,150.0,0.0001277,2]
[399242240,1766199866095,150.0,0.00013325,2]
[399242241,1766199867723,500.0,0.00013273,2]
[399242242,1766199870925,500.0,0.00013273,2]
[399242256,1766199906985,500.39740459,0.00013273,2]
[399242257,1766199907640,500.0,0.00013273,2]
[399242258,1766199908229,500.92471931,0.00013273,2]
[399242259,1766199908261,161.55843945,0.00013273,2]
[399242260,1766199910472,500.0,0.00013273,2]
[399242261,1766199911359,500.0,0.00013273,2]
[399242262,1766199911812,500.0,0.00013273,2]
[399242263,1766199912475,500.0,0.00013273,2]
[399242269,1766199930356,150.0,0.00011681,2]
[399242270,1766199961789,-197.26265603,0.00013685,2]
[399242271,1766199961817,-151.0,0.0001369,2]
[399242272,1766199961850,-151.0,0.0001369,2]
[399242273,1766199961877,-151.0,0.0001369,2]
[399242274,1766199961908,-151.0,0.0001369,2]
[399242275,1766199961935,-151.0,0.0001369,2]
[399242276,1766199961962,-151.0,0.0001369,2]
[399242277,1766199961989,-274.47943413,0.0001369,2]
[399242278,1766199962016,-1200.0,0.00013697,2]
[399242279,1766199962043,-284.0,0.00013697,2]
[399242280,1766199962071,-1200.0,0.00013697,2]
[399242281,1766199962096,-300.0,0.00013697,2]
[399242282,1766199962125,-500.0,0.00013698,2]
[399242283,1766199966937,-208.09588411,0.00013273,2]
[399242284,1766199972034,-286.47202671,0.00013273,2]
[399242285,1766199974077,-5.43208918,0.00013273,2]
[399242286,1766199974100,-221.61647244,0.00013273,2]
[399242287,1766199976141,-163.37989344,0.00013273,2]
[399242288,1766199983659,-115.00363412,0.00013273,2]
[399242289,1766199983687,-46.23459962,0.00013273,2]
[399242290,1766199985187,-218.85660862,0.00013273,2]
[399242291,1766199989268,-234.90879176,0.00013273,2]
[399242292,1766199989292,-43.56190353,0.00013273,2]
[399242293,1766199992428,-261.11666566,0.00013273,2]
[399242294,1766199994250,150.0,0.00011709,2]
[399242295,1766199994667,150.0,0.00012266,2]
[399242296,1766199995076,150.0,0.00012824,2]
[399242297,1766199998158,-195.32143081,0.00013273,2]
[399242298,1766199998186,-500.0,0.00013273,2]
[399242299,1766199998217,-503.08670053,0.00013273,2]
[399242300,1766199998245,-500.0,0.00013273,2]
[399242301,1766199998275,-500.0,0.00013273,2]
[399242302,1766199998304,-500.0,0.00013273,2]
[399242303,1766199998332,-500.94757836,0.00013273,2]
[399242304,1766199998359,-500.0,0.00013273,2]
[399242305,1766199998386,-500.0,0.00013273,2]
[399242306,1766199998414,-500.0,0.00013273,2]
[399242307,1766199998443,-101.2985806,0.00013273,2]
[399242308,1766199999193,-398.7014194,0.00013273,2]
[399242309,1766199999229,-150.0,0.00013381,2]
[399242310,1766199999249,-300.0,0.00013673,2]
[399242311,1766199999271,-680.8539395,0.00013693,2]
[399242312,1766199999295,-300.0,0.00013696,2]
[399242313,1766199999318,-500.94817168,0.00013698,2]
[399242314,1766199999340,-186.75951026,0.00013698,2]
[399242315,1766199999360,-427.86792639,0.00013698,2]
[399242316,1766199999382,-256.20790074,0.00013698,2]
[399242317,1766199999405,-77.35073815,0.00013698,2]
[399242318,1766200011992,-422.64926185,0.00013698,2]
[399242319,1766200012024,-500.0,0.00013698,2]
[399242320,1766200012052,-500.0,0.00013698,2]
[399242321,1766200012081,-212.63669668,0.00013698,2]
[399242322,1766200012110,-500.0,0.00013698,2]
[399242323,1766200012140,-500.0,0.00013698,2]
[399242324,1766200012169,-500.0,0.00013698,2]
[399242325,1766200012197,-500.0,0.00013698,2]
[399242326,1766200012226,-500.0,0.00013698,2]
[399242327,1766200012255,-505.88130435,0.00013698,2]
[399242328,1766200023486,216.67423893,0.00013273,2]
[399242329,1766200030249,2358.68403897,0.00013519,2]
[399242330,1766200030314,500.0,0.00013273,2]
[399242331,1766200037875,500.0,0.00013273,2]
[399242334,1766200054311,1354.47487291,0.00013519,2]
[399242335,1766200056948,-458.70872275,0.00013534,2]
[399242336,1766200059006,-194.7997174,0.00013534,2]
[399242338,1766200063042,-500.0,0.00013534,2]
[399242339,1766200065610,-270.35160461,0.00013534,2]
[399242340,1766200067417,150.0,0.00011688,2]
[399242341,1766200067833,150.0,0.00012244,2]
[399242342,1766200068209,-472.28835705,0.00013534,2]
[399242343,1766200068240,150.0,0.00012801,2]
[399242344,1766200069111,169.17,0.00013358,2]
[399242345,1766200071310,-177.30932799,0.00013534,2]
[399242346,1766200074449,-174.93640983,0.00013534,2]
[399242347,1766200077533,-178.90765402,0.00013534,2]
[399242348,1766200080131,244.98,7.992e-05,2]
[399242350,1766200084139,-300.0,0.00013533,2]
[399242351,1766200090496,-634.0,0.00013533,2]
[399242352,1766200113111,-2132.89637552,0.00013534,2]
[399242353,1766200113145,-10000.01,0.00013534,2]
[399242354,1766200119582,-10000.01,0.00013534,2]
[399242355,1766200119741,-10000.01,0.00013534,2]
[399242356,1766200119933,-10000.01,0.00013534,2]
[399242357,1766200131969,-350.07533276,0.00013534,2]
[399242359,1766200136304,-177.68532822,0.00013534,2]
[399242360,1766200137527,1639.97105846,0.00013514,2]
[399242361,1766200139343,-414.7792366,0.00013534,2]
[399242363,1766200143567,150.0,9.852e-05,2]
[399242364,1766200143972,150.0,0.00010321,2]
[399242366,1766200144398,203.1,0.0001079,2]
[399242367,1766200144794,270.8,0.00011259,2]
[399242368,1766200145388,338.5,0.00011728,2]
[399242369,1766200145795,406.2,0.00012197,2]
[399242370,1766200146015,5000.0,0.00013514,2]
[399242371,1766200146202,473.9,0.00012666,2]
[399242372,1766200146626,541.6,0.00013136,2]
[399242386,1766200169646,825.93894154,0.00013514,2]
[399242387,1766200169667,4174.06105846,0.00013514,2]
[399242388,1766200203810,500.0,0.00013273,2]
[399242389,1766200203837,500.0,0.00013273,2]
[399242390,1766200203960,500.0,0.00013273,2]
[399242391,1766200203990,500.0,0.00013273,2]
[399242392,1766200204550,608.0,0.00013273,2]
[399242393,1766200207046,502.3110438,0.00013273,2]
[399242394,1766200207486,500.0,0.00013273,2]
[399242395,1766200207744,500.0,0.00013273,2]
[399242396,1766200207860,500.0,0.00013273,2]
[399242397,1766200211792,500.0,0.00013273,2]
[399242399,1766200214784,291.28168471,0.00013273,2]
[399242400,1766200217139,424.35621303,0.00013273,2]
[399242401,1766200217161,75.64378697,0.00013273,2]
[399242402,1766200218260,500.0,0.00013273,2]
[399242403,1766200218288,500.0,0.00013273,2]
[399242404,1766200220008,607.74828511,0.00013273,2]
[399242405,1766200220113,150.0,0.00011538,2]
[399242406,1766200220546,150.0,0.00012087,2]
[399242407,1766200220945,150.0,0.00012637,2]
[399242408,1766200221124,247.24987397,0.00013273,2]
[399242409,1766200221370,181.68,0.00013186,2]
[399242410,1766200221886,500.0,0.00013273,2]
[399242411,1766200222227,457.96658946,0.00013273,2]
[399242412,1766200222458,500.0,0.00013273,2]
[399242413,1766200223931,209.03417449,0.00013273,2]
[399242414,1766200227862,500.0,0.00013273,2]
[399242415,1766200230598,500.0,0.00013273,2]
[399242427,1766200231826,500.0,0.00013273,2]
[399242440,1766200232001,-534.54761844,0.00013534,2]
[399242442,1766200233347,500.0,0.00013273,2]
[399242443,1766200235317,500.2075358,0.00013273,2]
[399242444,1766200236475,500.0,0.00013273,2]
[399242445,1766200236576,645.34943382,0.00013273,2]
[399242459,1766200238103,1968.10376632,0.00013514,2]
[399242467,1766200238165,-1389.5937966,0.00013534,2]
[399242469,1766200238177,-3346.67917461,0.00013534,2]
[399242471,1766200238186,-193.31740291,0.00013566,2]
[399242473,1766200238195,-1922.46484136,0.00013599,2]
[399242475,1766200238204,-1200.0,0.00013604,2]
[399242477,1766200238214,-300.0,0.00013673,2]
[399242479,1766200238224,-300.0,0.00013696,2]
[399242481,1766200238234,-300.0,0.00013697,2]
[399242483,1766200238243,-300.0,0.00013697,2]
[399242485,1766200238253,-300.0,0.00013697,2]
[399242487,1766200238262,-500.0,0.00013698,2]
[399242489,1766200238271,-198.84568768,0.00013698,2]
[399242491,1766200238281,-500.0,0.00013698,2]
[399242493,1766200238291,-1920.95336058,0.00013698,2]
[399242495,1766200238300,-300.0,0.00013698,2]
[399242497,1766200238309,-500.0,0.00013698,2]
[399242499,1766200238318,-500.0,0.00013698,2]
[399242501,1766200238327,-500.0,0.00013698,2]
[399242503,1766200238337,-500.0,0.00013698,2]
[399242505,1766200238345,-1000.0,0.00013699,2]
[399242507,1766200238354,-505.6746514,0.00013699,2]
[399242509,1766200238363,-174.3488813,0.00013699,2]
[399242511,1766200238373,-1219.394268,0.00013699,2]
[399242513,1766200238383,-500.8951109,0.00013699,2]
[399242515,1766200238392,-500.90235786,0.00013699,2]
[399242517,1766200238402,-502.79357488,0.00013699,2]
[399242519,1766200238411,-500.24180212,0.00013699,2]
[399242521,1766200238421,-500.30792581,0.00013699,2]
[399242523,1766200238430,-500.0,0.00013699,2]
[399242525,1766200238440,-500.35142375,0.00013699,2]
[399242527,1766200238449,-500.0,0.00013699,2]
[399242529,1766200238459,-501.08294033,0.00013699,2]
[399242531,1766200238467,-500.0,0.00013699,2]
[399242533,1766200238477,-159.56605907,0.00013699,2]
[399242535,1766200238486,-502.01018926,0.00013699,2]
[399242537,1766200238495,-500.7199097,0.00013699,2]
[399242539,1766200238504,-565.0718722,0.00013699,2]
[399242541,1766200238513,-500.88535676,0.00013699,2]
[399242543,1766200238522,-416.262014,0.00013699,2]
[399242545,1766200238531,-220.266204,0.00013699,2]
[399242547,1766200238540,-500.46231005,0.00013699,2]
[399242549,1766200238549,-500.64626079,0.00013699,2]
[399242551,1766200238558,-500.0,0.00013699,2]
[399242553,1766200238567,-500.32655774,0.00013699,2]
[399242555,1766200238578,-500.52426848,0.00013699,2]
[399242557,1766200238587,-500.0,0.00013699,2]
[399242559,1766200238596,-500.0,0.00013699,2]
[399242561,1766200238606,-627.83371497,0.00013699,2]
[399242563,1766200238616,-504.6287936,0.00013699,2]
[399242565,1766200238625,-500.0,0.00013699,2]
[399242567,1766200238634,-501.47926494,0.00013699,2]
[399242569,1766200238643,-500.0,0.00013699,2]
[399242571,1766200238652,-500.0,0.00013699,2]
[399242573,1766200238661,-501.97088529,0.00013699,2]
[399242575,1766200238670,-500.0,0.00013699,2]
[399242577,1766200238679,-500.94757353,0.00013699,2]
[399242579,1766200238687,-500.51048383,0.00013699,2]
[399242581,1766200238697,-414.56982478,0.00013699,2]
[399242591,1766200238784,-164.83668673,0.00013699,2]
[399242593,1766200238793,-643.98626856,0.00013699,2]
[399242595,1766200238803,-501.01680895,0.00013699,2]
[399242597,1766200238812,-191.20136725,0.00013699,2]
[399242599,1766200238821,-513.80272048,0.00013699,2]
[399242601,1766200238830,-500.0,0.00013699,2]
[399242603,1766200238839,-500.0,0.00013699,2]
[399242605,1766200238848,-500.0,0.00013699,2]
[399242607,1766200238857,-500.25399626,0.00013699,2]
[399242609,1766200238866,-500.62030226,0.00013699,2]
[399242611,1766200238877,-500.0,0.00013699,2]
[399242613,1766200238886,-500.0,0.00013699,2]
[399242615,1766200238895,-500.0,0.00013699,2]
[399242617,1766200238905,-500.0,0.00013699,2]
[399242619,1766200238914,-500.0,0.00013699,2]
[399242621,1766200238924,-500.0,0.00013699,2]
[399242623,1766200238933,-500.0,0.00013699,2]
[399242625,1766200238942,-500.33121641,0.00013699,2]
[399242627,1766200238951,-500.0,0.00013699,2]
[399242630,1766200238960,-534.18841001,0.00013699,2]
[399242631,1766200238970,-227.1,0.00013735,2]
[399242633,1766200238979,-662.0237243,0.00013821,2]
[399242635,1766200238990,-1000.0,0.00013821,2]
[399242637,1766200239000,-504.67113393,0.00013821,2]
[399242640,1766200239010,-1000.0,0.00013821,2]
[399242641,1766200239019,-916.35748466,0.00013821,2]
[399242643,1766200239029,-777.91248153,0.00013821,2]
[399242645,1766200239039,-1000.0,0.00013821,2]
[399242647,1766200239049,-1000.0,0.00013821,2]
[399242649,1766200239058,-1004.59877404,0.00013821,2]
[399242652,1766200239068,-1000.0,0.00013821,2]
[399242654,1766200239077,-649.05730174,0.00013821,2]
[399242655,1766200239086,-336.28941299,0.00013821,2]
[399242657,1766200239095,-487.85529488,0.00013821,2]
[399242660,1766200239104,-1000.0,0.00013821,2]
[399242662,1766200239114,-278.47069529,0.00013821,2]
[399242663,1766200239122,-500.0,0.00013821,2]
[399242666,1766200239132,-516.9611798,0.00013821,2]
[399242668,1766200239141,-453.53457187,0.00013821,2]
[399242669,1766200239151,-500.0,0.00013821,2]
[399242671,1766200239160,-216.07245418,0.00013821,2]
[399242673,1766200239169,-443.351048,0.00013821,2]
[399242675,1766200239178,-1000.0,0.00013821,2]
[399242677,1766200239188,-1000.0,0.00013821,2]
[399242679,1766200239197,-157.8995167,0.00013821,2]
[399242682,1766200239207,-500.0,0.00013821,2]
[399242683,1766200239217,-281.23761619,0.00013885,7]
[399242685,1766200239226,-300.0,0.00013972,2]
[399242687,1766200239235,-300.0,0.00013972,2]
[399242689,1766200239245,-300.0,0.00013972,2]
[399242692,1766200239254,-300.0,0.00013972,2]
[399242693,1766200239263,-300.0,0.00013972,2]
[399242695,1766200239272,-300.0,0.00013972,2]
[399242697,1766200239282,-300.0,0.00013972,2]
[399242700,1766200239292,-300.0,0.00013972,2]
[399242702,1766200239301,-300.0,0.00013972,2]
[399242703,1766200239310,-300.0,0.00013972,2]
[399242705,1766200239319,-300.0,0.00013972,2]
[399242707,1766200239328,-300.0,0.00013972,2]
[399242709,1766200239337,-300.0,0.00013972,2]
[399242711,1766200239346,-300.0,0.00013972,2]
[399242713,1766200239355,-300.0,0.00013972,2]
[399242715,1766200239364,-2303.44770343,0.00014035,2]
[399242717,1766200239373,-600.0,0.00014221,2]
[399242719,1766200239382,-501.51895834,0.00014247,2]
[399242721,1766200239391,-500.51165113,0.00014247,2]
[399242723,1766200239400,-505.13945109,0.00014247,2]
[399242725,1766200239409,-500.59605555,0.00014247,2]
[399242727,1766200239419,-1000.0,0.00014247,2]
[399242730,1766200239436,-189.50333287,0.00014247,2]
[399242733,1766200239449,-500.40139747,0.00014247,2]
[399242735,1766200239459,-551.20331827,0.00014247,2]
[399242737,1766200239468,-501.56634744,0.00014247,2]
[399242739,1766200239478,-552.71144199,0.00014247,2]
[399242741,1766200239487,-501.10989117,0.00014247,2]
[399242743,1766200239497,-1000.0,0.00014247,2]
[399242745,1766200239508,-1000.0,0.00014247,2]
[399242747,1766200239517,-500.89247395,0.00014247,2]
[399242749,1766200239526,-1000.0,0.00014247,2]
[399242751,1766200239536,-1000.0,0.00014247,2]
[399242754,1766200239554,-500.87864742,0.00014247,2]
[399242757,1766200239570,-1000.0,0.00014247,2]
[399242759,1766200239585,-184.54323318,0.00014247,2]
[399242762,1766200239600,-500.80229067,0.00014247,2]
[399242764,1766200239612,-514.88648469,0.00014247,2]
[399242767,1766200239626,-151.0,0.00014247,2]
[399242769,1766200239640,-600.0,0.0001425,2]
[399242772,1766200239654,-1420.90753732,0.00014268,2]
[399242774,1766200239667,-272.52,0.00014285,2]
[399242777,1766200239681,-200.0,0.00014323,2]
[399242779,1766200239694,-341.03491042,0.00014368,2]
[399242782,1766200239708,-505.78572565,0.00014368,2]
[399242784,1766200239722,-1001.68834494,0.00014368,2]
[399242787,1766200239735,-1150.3747991,0.00014368,2]
[399242789,1766200239747,-1500.0,0.00014368,2]
[399242791,1766200239761,-366.54083487,0.00014368,2]
[399242794,1766200239775,-1500.0,0.00014368,2]
[399242796,1766200239788,-1500.0,0.00014368,2]
[399242801,1766200239801,-11329.1211995,0.0001475,2]
[399242805,1766200239814,-900.0,0.00014768,2]
[399242810,1766200239826,-1500.0,0.00014795,2]
[399242812,1766200239837,-1051.18467569,0.00014795,2]
[399242814,1766200239848,-1208.31459631,0.00014795,2]
[399242816,1766200239860,-120.62649704,0.00014795,2]
[399242838,1766200240048,-381.40788545,0.00014795,2]
[399242840,1766200240059,-1500.0,0.00014795,2]
[399242843,1766200240070,-1327.49422228,0.00014795,2]
[399242845,1766200240080,-155.198842,0.00014795,2]
[399242847,1766200240091,-317.94,0.00014834,2]
[399242849,1766200240102,-571.64,0.0001491,2]
[399242851,1766200240112,-1003.36756805,0.00014916,2]
[399242857,1766200240152,648.40882705,0.00013273,2]
[399242915,1766200240652,-3e-08,0.00014916,2]
[399243194,1766200243511,-364.29884512,0.00014916,2]
[399244041,1766200261274,592.9201894,0.00013273,2]
[399244042,1766200262075,897.98,0.00013514,2]
[399244043,1766200264842,642.37935127,0.00013273,2]
[399244044,1766200265248,175.29,0.0001,2]
[399244045,1766200267735,175.29,0.000102,2]
[399244046,1766200270158,175.29,0.000104,2]
[399244047,1766200273179,175.29,0.000106,2]
[399244048,1766200275713,175.29,0.000108,2]
[399244049,1766200278090,175.29,0.00011,2]
[399244050,1766200285056,552.92089634,0.00013514,2]
[399244051,1766200285078,2247.07910366,0.00013514,2]
[399244052,1766200290790,150.0,0.00011769,2]
[399244053,1766200291201,150.0,0.00012329,2]
[399244054,1766200291613,170.92,0.0001289,2]
[399244055,1766200292618,227.89,0.0001345,2]
[399244056,1766200303018,500.0,0.00013273,2]
[399244057,1766200303469,481.69009115,0.00013273,2]
[399244058,1766200304729,500.0,0.00013273,2]
[399244059,1766200304816,219.10013382,0.00013273,2]
[399244060,1766200308860,1302.02,0.00013514,2]
[399244061,1766200323847,500.0,0.00013273,2]
[399244062,1766200341799,500.0,0.00013273,2]
[399244063,1766200370471,150.0,9.885e-05,2]
[399244064,1766200370865,150.0,0.00010356,2]
[399244065,1766200371265,172.87,0.00010826,2]
[399244066,1766200371685,230.49,0.00011297,2]
[399244067,1766200372107,288.12,0.00011768,2]
[399244068,1766200372508,345.74,0.00012238,2]
[399244069,1766200372927,403.37,0.00012709,2]
[399244070,1766200373316,460.99,0.0001318,2]
[399244081,1766200386162,500.0,0.00013273,2]
[399244099,1766200444018,349.73067137,0.00013273,2]
[399244100,1766200444044,150.26932863,0.00013273,2]
[399244101,1766200446648,150.0,9.894e-05,2]
[399244102,1766200447533,150.0,0.00010365,2]
[399244103,1766200447942,150.0,0.00010836,2]
[399244104,1766200448365,150.0,0.00011308,2]
[399244105,1766200448762,167.11,0.00011779,2]
[399244106,1766200449159,200.53,0.0001225,2]
[399244107,1766200449586,233.95,0.00012721,2]
[399244108,1766200450003,267.37,0.00013192,2]
[399244109,1766200450248,501.87386763,0.00013273,2]
[399244119,1766200453891,684.7229129,0.00012698,2]
[399244120,1766200453930,503.26642219,0.00013273,2]
[399244121,1766200454693,500.6640112,0.00013273,2]
[399244122,1766200463555,500.0,0.00013273,2]
[399244216,1766200507608,500.0,0.00013273,2]
[399244228,1766200510756,500.0,0.00013273,2]
[399244229,1766200511621,500.0,0.00013273,2]
[399244247,1766200518977,150.0,0.00010179,2]
[399244248,1766200519382,150.0,0.00010663,2]
[399244249,1766200519812,150.0,0.00011148,2]
[399244250,1766200520726,150.0,0.00011633,2]
[399244251,1766200520811,502.42918453,0.00013273,2]
[399244256,1766200521040,500.0,0.00013273,2]
[399244259,1766200521633,150.0,0.00012117,2]
[399244260,1766200522040,150.0,0.00012602,2]
[399244261,1766200522433,150.0,0.00013087,2]
[399244269,1766200536958,-150.0,0.00013571,2]
[399244270,1766200536980,-163.3257237,0.00013599,2]
[399244271,1766200538973,-155.58240533,0.00013599,2]
[399244276,1766200542072,-441.95257484,0.00013599,2]
[399244277,1766200543974,-500.0,0.00013599,2]
[399244278,1766200545512,-344.41759467,0.00013599,2]
[399244281,1766200548590,-167.85663197,0.00013599,2]
[399244285,1766200564968,559.15269196,0.00013273,2]
[399244294,1766200588323,500.0,0.00013273,2]
[399244295,1766200623671,500.0,0.00013273,2]
[399244296,1766200625023,500.0,0.00013273,2]
[399244297,1766200672589,-177.68532822,0.00013599,2]
[399244298,1766200676422,-151.34372274,0.00013599,2]
[399244299,1766200678031,-170.67042479,0.00013599,2]
[399244300,1766200681704,-228.10888316,0.00013599,2]
[399244301,1766200683676,500.0,0.00013273,2]
[399244302,1766200684857,-179.40225914,0.00013599,2]
[399244303,1766200687891,-334.92540832,0.00013599,2]